[Event "36th Indian-ch U13 Girls 2023"]
[Site "Secunderabad"]
[Date "2023.12.04"]
[Round "1.1"]
[White "Tia Bedi"]
[Black "Kalyani Sirin"]
[Result "0-1"]
[ECO "E65"]
[WhiteElo "1123"]
[BlackElo "1802"]
[Annotator "NA RC"]
[PlyCount "140"]
[EventDate "2023.12.04"]
[EventType "swiss"]
[EventCountry "IND"]
[SourceTitle "playchess.com"]
[Source "ChessBase"]
[SourceQuality "1"]
[TimeControl "5400+30"]

1. d4 {[%emt 0:00:04]} Nf6 {[%emt 0:00:14]} 2. c4 {[%emt 0:00:13]} g6 {[%emt 0:00:27]} 3. Nf3 {[%emt 0:00:37]} Bg7 {[%emt 0:00:21]} 4. g3 {[%emt 0:00:16]} O-O {[%emt 0:00:14]} 5. Bg2 {[%emt 0:00:48]} d6 {[%emt 0:00:11]} 6. O-O {[%emt 0:00:20]} c5 {[%emt 0:00:07]} 7. Nc3 {[%emt 0:01:28]} Nc6 {[%emt 0:00:10]} 8. b3 {[%emt 0:01:42]} Bf5 {[%emt 0:07:39]} 9. e3 {[%emt 0:02:19]} e5 {[%emt 0:09:19]} 10. dxe5 {[%emt 0:05:06]} dxe5 {[%emt 0:00:15]} 11. Bb2 {[%emt 0:00:51]} e4 {[%emt 0:11:20]} 12. Nd2 {[%emt 0:00:57]} Re8 {[%emt 0:00:57]} 13. a3 {[%emt 0:07:58]} Qd6 {[%emt 0:16:06]} 14. Qc2 {[%emt 0:04:00]} Qe6 {[%emt 0:01:21]} 15. Ne2 {[%emt 0:02:52]} g5 {[%emt 0:04:05]} 16. Rad1 {[%emt 0:05:22]} Ne5 {[%emt 0:00:51]} 17. Bxe5 {[%emt 0:02:41]} Qxe5 {[%emt 0:00:46]} 18. h3 {[%emt 0:00:47]} Rad8 {[%emt 0:00:29]} 19. g4 {[%emt 0:02:57]} Bg6 {[%emt 0:00:30]} 20. Ng3 {[%emt 0:04:58]} Kf8 {[%emt 0:03:35]} 21. Rfe1 {[%emt 0:04:09]} Rd3 {[%emt 0:03:12]} 22. Nb1 {[%emt 0:03:11]} Red8 {[%emt 0:01:41]} 23. Bf1 {[%emt 0:02:23]} Rxd1 {[%emt 0:02:28]} 24. Rxd1 {[%emt 0:00:16]} Rxd1 {[%emt 0:00:09]} 25. Qxd1 {[%emt 0:00:32]} Ke7 {[%emt 0:00:06]} 26. Qc2 {[%emt 0:02:15]} h5 {[%emt 0:01:04]} 27. Be2 {[%emt 0:04:50]} h4 {[%emt 0:02:12]} 28. Nf1 {[%emt 0:00:33]} Nd7 {[%emt 0:00:20]} 29. Nfd2 {[%emt 0:04:33]} Ke6 {[%emt 0:03:14]} 30. b4 {[%emt 0:02:41]} Bf8 {[%emt 0:01:09]} 31. b5 {[%emt 0:01:15]} Bd6 {[%emt 0:00:40]} 32. Nf1 {[%emt 0:01:47]} f5 {[%emt 0:06:20]} 33. Nc3 {[%emt 0:01:04]} Nf6 {[%emt 0:00:10]} 34. Nd5 {[%emt 0:01:58]} Nxd5 {[%emt 0:01:27]} 35. cxd5+ {[%emt 0:00:08]} Kf6 {[%emt 0:00:21]} 36. Qb3 {[%emt 0:03:14]} Bf7 {[%emt 0:01:05]} 37. Bc4 {[%emt 0:01:02]} fxg4 {[%emt 0:00:16]} 38. hxg4 {[%emt 0:00:37]} Ke7 {[%emt 0:01:35]} 39. Kg2 {[%emt 0:03:16]} Qf6 {[%emt 0:01:34]} 40. Qd1 {[%emt 0:02:15]} Be8 {[%emt 0:02:22]} 41. Qe2 {[%emt 0:01:14]} Bd7 {[%emt 0:03:17]} 42. Kh3 {[%emt 0:01:35]} Be8 {[%emt 0:02:03]} 43. a4 {[%emt 0:01:33]} Bf7 {[%emt 0:01:04]} 44. a5 {[%emt 0:01:18]} Bc7 {[%emt 0:01:35]} 45. a6 {[%emt 0:00:43]} b6 {[%emt 0:00:23]} 46. Kg2 {[%emt 0:02:12]} Qe5 {[%emt 0:02:12]} 47. d6+ {[%emt 0:02:35]} Bxd6 {[%emt 0:00:12]} 48. Bxf7 {[%emt 0:00:49]} Kxf7 {[%emt 0:00:02]} 49. Qc4+ {[%emt 0:00:19]} Qe6 {[%emt 0:00:46]} 50. Nd2 {[%emt 0:00:40]} Qxc4 {[%emt 0:02:32]} 51. Nxc4 {[%emt 0:00:07]} Bc7 {[%emt 0:01:15]} 52. f3 {[%emt 0:01:28]} h3+ {[%emt 0:02:15]} 53. Kxh3 {[%emt 0:00:26]} exf3 {[%emt 0:00:04]} 54. e4 {[%emt 0:00:44]} Ke6 {[%emt 0:00:35]} 55. Nd2 {[%emt 0:00:34]} Ke5 {[%emt 0:00:34]} 56. Nxf3+ {[%emt 0:01:08]} Kf4 {[%emt 0:00:31]} 57. Nd2 {[%emt 0:00:39]} Ke3 {[%emt 0:00:18]} 58. Nc4+ {[%emt 0:01:04]} Kxe4 {[%emt 0:00:06]} 59. Kg2 {[%emt 0:00:35]} Kd3 {[%emt 0:00:35]} 60. Na3 {[%emt 0:00:28]} c4 {[%emt 0:00:12]} 61. Kf3 {[%emt 0:00:27]} c3 {[%emt 0:00:04]} 62. Kf2 {[%emt 0:00:44]} Bd6 {[%emt 0:00:11]} 63. Nc4 {[%emt 0:00:24]} Kxc4 {[%emt 0:00:08]} 64. Ke2 {[%emt 0:00:13]} c2 {[%emt 0:00:04]} 65. Kd2 {[%emt 0:00:20]} Kb3 {[%emt 0:00:06]} 66. Kd3 {[%emt 0:00:34]} c1=Q {[%emt 0:01:55]} 67. Ke2 {[%emt 0:00:20]} Qc3 {[%emt 0:00:12]} 68. Kf1 {[%emt 0:00:14]} Qd2 {[%emt 0:00:04]} 69. Kg1 {[%emt 0:00:12]} Bg3 {[%emt 0:00:10]} 70. Kf1 {[%emt 0:00:09]} Qf2# {[%emt 0:00:05]} 0-1

[Event "36th Indian-ch U13 Girls 2023"]
[Site "Secunderabad"]
[Date "2023.12.04"]
[Round "1.2"]
[White "Arshiya Das"]
[Black "Jalawadi Nandika"]
[Result "1-0"]
[ECO "C00"]
[WhiteElo "1729"]
[BlackElo "1122"]
[Annotator "NA RC"]
[PlyCount "73"]
[EventDate "2023.12.04"]
[EventType "swiss"]
[EventCountry "IND"]
[SourceTitle "playchess.com"]
[Source "ChessBase"]
[SourceQuality "1"]
[TimeControl "5400+30"]

1. e4 {[%emt 0:00:03]} e6 {[%emt 0:00:10]} 2. d3 {[%emt 0:00:07]} d5 {[%emt 0:00:07]} 3. Nd2 {[%emt 0:00:03]} Nf6 {[%emt 0:01:30]} 4. Ngf3 {[%emt 0:00:04]} Be7 {[%emt 0:01:39]} 5. g3 {[%emt 0:00:07]} O-O {[%emt 0:00:45]} 6. Bg2 {[%emt 0:00:14]} c5 {[%emt 0:03:30]} 7. O-O {[%emt 0:00:07]} Nc6 {[%emt 0:02:37]} 8. e5 {[%emt 0:00:08]} Nd7 {[%emt 0:00:43]} 9. Re1 {[%emt 0:00:04]} Qc7 {[%emt 0:05:30]} 10. Qe2 {[%emt 0:00:04]} b6 {[%emt 0:03:47]} 11. Nf1 {[%emt 0:00:25]} Ba6 {[%emt 0:03:07]} 12. c3 {[%emt 0:01:28]} Rac8 {[%emt 0:06:11]} 13. Bf4 {[%emt 0:00:57]} Rfd8 {[%emt 0:05:22]} 14. h4 {[%emt 0:00:19]} Nf8 {[%emt 0:10:03]} 15. h5 {[%emt 0:00:24]} b5 {[%emt 0:05:20]} 16. N1h2 {[%emt 0:02:25]} b4 {[%emt 0:03:16]} 17. Ng4 {[%emt 0:00:48]} bxc3 {[%emt 0:02:16]} 18. bxc3 {[%emt 0:00:37]} c4 {[%emt 0:00:19]} 19. d4 {[%emt 0:00:24]} Qa5 {[%emt 0:00:22]} 20. h6 {[%emt 0:00:15]} g6 {[%emt 0:10:45]} 21. Bg5 {[%emt 0:00:07]} Nd7 {[%emt 0:10:01]} 22. Qd2 {[%emt 0:01:02]} Re8 {[%emt 0:04:10]} 23. Qf4 {[%emt 0:05:30]} Qd8 {[%emt 0:03:15]} 24. Bxe7 {[%emt 0:01:47]} Qxe7 {[%emt 0:00:18]} 25. Rab1 {[%emt 0:01:14]} Rb8 {[%emt 0:01:15]} 26. Ng5 {[%emt 0:07:36]} Bb5 {[%emt 0:04:28]} 27. Bxd5 {[%emt 0:06:08]} exd5 {[%emt 0:03:03]} 28. e6 {[%emt 0:00:06]} fxe6 {[%emt 0:03:31]} 29. Rxe6 {[%emt 0:00:04]} Qxe6 {[%emt 0:00:55]} 30. Nxe6 {[%emt 0:00:17]} Rxe6 {[%emt 0:00:07]} 31. Qc7 {[%emt 0:02:33]} Ba4 {[%emt 0:02:52]} 32. Rxb8+ {[%emt 0:00:48]} Ncxb8 {[%emt 0:00:18]} 33. Ne5 {[%emt 0:01:52]} Re8 {[%emt 0:03:08]} 34. Qd6 {[%emt 0:01:00]} a6 {[%emt 0:02:17]} 35. Qxd5+ {[%emt 0:00:09]} Kh8 {[%emt 0:00:22]} 36. Nf7+ {[%emt 0:00:15]} Kg8 {[%emt 0:00:07]} 37. Nd6+ {[%emt 0:00:21]} 1-0

[Event "36th Indian-ch U13 Girls 2023"]
[Site "Secunderabad"]
[Date "2023.12.04"]
[Round "1.3"]
[White "Korukonda Rishitha"]
[Black "Saparya Ghosh"]
[Result "1-0"]
[ECO "A17"]
[WhiteElo "1117"]
[BlackElo "1662"]
[Annotator "NA RC"]
[PlyCount "89"]
[EventDate "2023.12.04"]
[EventType "swiss"]
[EventCountry "IND"]
[SourceTitle "playchess.com"]
[Source "ChessBase"]
[SourceQuality "1"]
[TimeControl "5400+30"]

1. c4 {[%emt 0:00:03]} Nf6 {[%emt 0:00:14]} 2. g3 {[%emt 0:00:11]} e6 {[%emt 0:01:01]} 3. Bg2 {[%emt 0:00:20]} d5 {[%emt 0:00:07]} 4. cxd5 {[%emt 0:00:33]} exd5 {[%emt 0:00:08]} 5. d4 {[%emt 0:00:58]} c6 {[%emt 0:00:34]} 6. Nc3 {[%emt 0:00:38]} Bf5 {[%emt 0:00:16]} 7. Nf3 {[%emt 0:01:00]} Bd6 {[%emt 0:03:22]} 8. O-O {[%emt 0:02:35]} h6 {[%emt 0:00:18]} 9. Nh4 {[%emt 0:04:51]} Bh7 {[%emt 0:00:36]} 10. Qb3 {[%emt 0:02:30]} Qc7 {[%emt 0:07:49]} 11. Nf3 {[%emt 0:02:59]} Nbd7 {[%emt 0:00:28]} 12. Nd2 {[%emt 0:01:35]} O-O {[%emt 0:00:40]} 13. e4 {[%emt 0:03:29]} dxe4 {[%emt 0:00:40]} 14. Ndxe4 {[%emt 0:00:33]} Nxe4 {[%emt 0:14:32]} 15. Nxe4 {[%emt 0:00:19]} Nb6 {[%emt 0:06:41]} 16. Nc5 {[%emt 0:04:55]} Rfd8 {[%emt 0:04:36]} 17. Be3 {[%emt 0:03:55]} Rab8 {[%emt 0:03:19]} 18. Rac1 {[%emt 0:04:33]} Qe7 {[%emt 0:09:55]} 19. Rfe1 {[%emt 0:01:43]} Qf8 {[%emt 0:05:11]} 20. a3 {[%emt 0:10:51]} Bf5 {[%emt 0:14:23]} 21. Bd2 {[%emt 0:06:00]} Bxc5 {[%emt 0:04:17]} 22. dxc5 {[%emt 0:02:15]} Rxd2 {[%emt 0:01:58]} 23. cxb6 {[%emt 0:00:40]} axb6 {[%emt 0:03:17]} 24. Qxb6 {[%emt 0:02:04]} Qd6 {[%emt 0:00:52]} 25. b4 {[%emt 0:03:18]} Rd8 {[%emt 0:06:28]} 26. Qc5 {[%emt 0:08:54]} Qf6 {[%emt 0:06:32]} 27. Qc3 {[%emt 0:04:26]} Qg5 {[%emt 0:02:01]} 28. h3 {[%emt 0:01:29]} R8d3 {[%emt 0:00:50]} 29. Qe5 {[%emt 0:03:34]} Qg6 {[%emt 0:01:27]} 30. g4 {[%emt 0:02:45]} Bxg4 {[%emt 0:02:13]} 31. hxg4 {[%emt 0:00:16]} Rd8 {[%emt 0:00:42]} 32. Qe8+ {[%emt 0:01:37]} Kh7 {[%emt 0:00:29]} 33. Be4 {[%emt 0:00:14]} f5 {[%emt 0:00:32]} 34. Bxf5 {[%emt 0:00:15]} Qxf5 {[%emt 0:00:31]} 35. gxf5 {[%emt 0:00:09]} Rxe8 {[%emt 0:00:10]} 36. Rxe8 {[%emt 0:00:10]} Rd3 {[%emt 0:00:25]} 37. Ra1 {[%emt 0:00:28]} Rf3 {[%emt 0:00:18]} 38. Rb8 {[%emt 0:00:19]} b5 {[%emt 0:00:10]} 39. Rb6 {[%emt 0:00:12]} Rxf5 {[%emt 0:00:15]} 40. Rxc6 {[%emt 0:00:07]} Rf7 {[%emt 0:00:20]} 41. Rac1 {[%emt 0:00:30]} Rf3 {[%emt 0:00:21]} 42. R1c3 {[%emt 0:00:10]} Rf7 {[%emt 0:00:13]} 43. Rb6 {[%emt 0:00:06]} Rf5 {[%emt 0:00:08]} 44. Kg2 {[%emt 0:00:37]} h5 {[%emt 0:00:14]} 45. Rc5 {[%emt 0:00:18]} 1-0

[Event "36th Indian-ch U13 Girls 2023"]
[Site "Secunderabad"]
[Date "2023.12.04"]
[Round "1.4"]
[White "Gorli Nyna"]
[Black "Thaniya Shree C"]
[Result "1-0"]
[ECO "C54"]
[WhiteElo "1652"]
[BlackElo "1117"]
[Annotator "NA RC"]
[PlyCount "71"]
[EventDate "2023.12.04"]
[EventType "swiss"]
[EventCountry "IND"]
[SourceTitle "playchess.com"]
[Source "ChessBase"]
[SourceQuality "1"]
[TimeControl "5400+30"]

1. e4 {[%emt 0:00:06]} e5 {[%emt 0:00:08]} 2. Nf3 {[%emt 0:00:05]} Nc6 {[%emt 0:00:09]} 3. Bc4 {[%emt 0:00:06]} Bc5 {[%emt 0:00:12]} 4. c3 {[%emt 0:00:05]} Nf6 {[%emt 0:01:14]} 5. d3 {[%emt 0:00:07]} h6 {[%emt 0:00:50]} 6. Nbd2 {[%emt 0:00:30]} O-O {[%emt 0:01:00]} 7. O-O {[%emt 0:00:09]} d6 {[%emt 0:01:24]} 8. h3 {[%emt 0:00:07]} Be6 {[%emt 0:01:42]} 9. Bb3 {[%emt 0:02:12]} a5 {[%emt 0:02:48]} 10. Re1 {[%emt 0:01:27]} a4 {[%emt 0:02:25]} 11. Bxa4 {[%emt 0:04:29]} Nd7 {[%emt 0:05:53]} 12. Nf1 {[%emt 0:03:10]} f5 {[%emt 0:03:02]} 13. Bb3 {[%emt 0:03:48]} Bxb3 {[%emt 0:00:18]} 14. Qxb3+ {[%emt 0:00:08]} Kh8 {[%emt 0:00:31]} 15. exf5 {[%emt 0:01:35]} Rxf5 {[%emt 0:02:03]} 16. Ng3 {[%emt 0:00:50]} Rf8 {[%emt 0:01:53]} 17. Qe6 {[%emt 0:04:35]} Bxf2+ {[%emt 0:13:39]} 18. Kxf2 {[%emt 0:01:55]} Nc5 {[%emt 0:00:49]} 19. Qg4 {[%emt 0:05:38]} Nxd3+ {[%emt 0:00:22]} 20. Kg1 {[%emt 0:00:12]} Nxe1 {[%emt 0:00:25]} 21. Nxe1 {[%emt 0:00:02]} Qf6 {[%emt 0:01:43]} 22. Nf3 {[%emt 0:01:28]} Qf7 {[%emt 0:04:54]} 23. Be3 {[%emt 0:03:11]} Rxa2 {[%emt 0:13:06]} 24. Rf1 {[%emt 0:00:08]} Rxb2 {[%emt 0:01:19]} 25. Nh4 {[%emt 0:01:58]} Qe8 {[%emt 0:12:44]} 26. Rxf8+ {[%emt 0:00:30]} Qxf8 {[%emt 0:00:08]} 27. Ng6+ {[%emt 0:00:14]} Kh7 {[%emt 0:00:07]} 28. Nxf8+ {[%emt 0:00:06]} Kg8 {[%emt 0:00:04]} 29. Nf5 {[%emt 0:00:19]} Kxf8 {[%emt 0:00:18]} 30. Qxg7+ {[%emt 0:00:46]} Ke8 {[%emt 0:00:07]} 31. Qxc7 {[%emt 0:00:22]} Ne7 {[%emt 0:00:21]} 32. Nxd6+ {[%emt 0:00:33]} Kf8 {[%emt 0:00:10]} 33. Bxh6+ {[%emt 0:00:05]} Kg8 {[%emt 0:00:06]} 34. Qxe7 {[%emt 0:00:05]} Kh8 {[%emt 0:00:12]} 35. Qxe5+ {[%emt 0:00:20]} Kh7 {[%emt 0:00:12]} 36. Qg7# {[%emt 0:00:02]} 1-0

[Event "36th Indian-ch U13 Girls 2023"]
[Site "Secunderabad"]
[Date "2023.12.04"]
[Round "1.5"]
[White "Divyasree Kollipara"]
[Black "Nivedita V C"]
[Result "0-1"]
[ECO "C45"]
[WhiteElo "1112"]
[BlackElo "1638"]
[Annotator "NA RC"]
[PlyCount "58"]
[EventDate "2023.12.04"]
[EventType "swiss"]
[EventCountry "IND"]
[SourceTitle "playchess.com"]
[Source "ChessBase"]
[SourceQuality "1"]
[TimeControl "5400+30"]

1. e4 {[%emt 0:00:03]} e5 {[%emt 0:00:05]} 2. Nf3 {[%emt 0:00:08]} Nc6 {[%emt 0:00:04]} 3. d4 {[%emt 0:00:13]} exd4 {[%emt 0:00:08]} 4. Nxd4 {[%emt 0:00:11]} Bc5 {[%emt 0:00:13]} 5. Nb3 {[%emt 0:00:12]} Bb6 {[%emt 0:00:07]} 6. Qe2 {[%emt 0:00:17]} d6 {[%emt 0:03:19]} 7. Nc3 {[%emt 0:00:35]} Be6 {[%emt 0:04:03]} 8. Be3 {[%emt 0:01:08]} Nf6 {[%emt 0:07:39]} 9. O-O-O {[%emt 0:00:49]} Ne5 {[%emt 0:04:33]} 10. Bxb6 {[%emt 0:10:33]} axb6 {[%emt 0:00:15]} 11. h3 {[%emt 0:02:12]} Bxb3 {[%emt 0:02:10]} 12. Qb5+ {[%emt 0:03:22]} Nfd7 {[%emt 0:01:19]} 13. Qxb3 {[%emt 0:00:41]} O-O {[%emt 0:00:54]} 14. f4 {[%emt 0:03:49]} Nc5 {[%emt 0:02:13]} 15. Qb5 {[%emt 0:01:00]} Nc6 {[%emt 0:01:02]} 16. g3 {[%emt 0:02:22]} Ra5 {[%emt 0:01:15]} 17. Qc4 {[%emt 0:01:08]} b5 {[%emt 0:01:05]} 18. Nxb5 {[%emt 0:07:58]} Ra4 {[%emt 0:00:08]} 19. Qe2 {[%emt 0:00:08]} Rxa2 {[%emt 0:00:59]} 20. Kb1 {[%emt 0:00:55]} Qa8 {[%emt 0:01:12]} 21. Na3 {[%emt 0:00:56]} Rxa3 {[%emt 0:01:22]} 22. bxa3 {[%emt 0:01:27]} Qxa3 {[%emt 0:00:06]} 23. Rd3 {[%emt 0:18:33]} Qb4+ {[%emt 0:01:02]} 24. Rb3 {[%emt 0:01:28]} Nxb3 {[%emt 0:00:09]} 25. cxb3 {[%emt 0:00:09]} Qxb3+ {[%emt 0:00:14]} 26. Qb2 {[%emt 0:00:57]} Qd1+ {[%emt 0:01:03]} 27. Qc1 {[%emt 0:01:03]} Qf3 {[%emt 0:01:02]} 28. Rg1 {[%emt 0:01:25]} Ra8 {[%emt 0:00:54]} 29. Qc2 {[%emt 0:04:57]} Nb4 {[%emt 0:01:24]} 0-1

[Event "36th Indian-ch U13 Girls 2023"]
[Site "Secunderabad"]
[Date "2023.12.04"]
[Round "1.6"]
[White "Kirthika B"]
[Black "Sisika Borelli"]
[Result "1-0"]
[ECO "C68"]
[WhiteElo "1605"]
[BlackElo "1109"]
[Annotator "NA RC"]
[PlyCount "159"]
[EventDate "2023.12.04"]
[EventType "swiss"]
[EventCountry "IND"]
[SourceTitle "playchess.com"]
[Source "ChessBase"]
[SourceQuality "1"]
[TimeControl "5400+30"]

1. e4 {[%emt 0:00:09]} e5 {[%emt 0:00:07]} 2. Nf3 {[%emt 0:00:06]} Nc6 {[%emt 0:00:10]} 3. Bb5 {[%emt 0:00:09]} a6 {[%emt 0:00:53]} 4. Bxc6 {[%emt 0:00:11]} dxc6 {[%emt 0:00:04]} 5. O-O {[%emt 0:00:09]} Bd6 {[%emt 0:00:40]} 6. d4 {[%emt 0:00:06]} exd4 {[%emt 0:01:30]} 7. Qxd4 {[%emt 0:00:06]} f6 {[%emt 0:10:07]} 8. Be3 {[%emt 0:00:08]} Ne7 {[%emt 0:05:36]} 9. Nbd2 {[%emt 0:00:44]} O-O {[%emt 0:00:53]} 10. Nc4 {[%emt 0:01:39]} Be6 {[%emt 0:12:09]} 11. Qc3 {[%emt 0:01:12]} Ng6 {[%emt 0:08:04]} 12. Nd4 {[%emt 0:05:34]} Bf7 {[%emt 0:18:49]} 13. Rad1 {[%emt 0:01:00]} Bxc4 {[%emt 0:21:15]} 14. Qxc4+ {[%emt 0:00:13]} Rf7 {[%emt 0:00:54]} 15. Nf5 {[%emt 0:01:35]} Ne5 {[%emt 0:02:46]} 16. Qb3 {[%emt 0:01:31]} b5 {[%emt 0:05:55]} 17. Bc5 {[%emt 0:02:40]} Nc4 {[%emt 0:02:08]} 18. Bxd6 {[%emt 0:01:28]} Nxd6 {[%emt 0:02:48]} 19. Qg3 {[%emt 0:00:48]} Rd7 {[%emt 0:00:27]} 20. Nxd6 {[%emt 0:09:30]} Rxd6 {[%emt 0:00:06]} 21. Qg4 {[%emt 0:01:30]} Qe7 {[%emt 0:00:53]} 22. Rxd6 {[%emt 0:00:46]} cxd6 {[%emt 0:00:13]} 23. Rd1 {[%emt 0:01:16]} Rd8 {[%emt 0:00:45]} 24. Qf3 {[%emt 0:03:11]} d5 {[%emt 0:01:09]} 25. exd5 {[%emt 0:00:56]} Rxd5 {[%emt 0:00:07]} 26. h3 {[%emt 0:01:50]} Rxd1+ {[%emt 0:00:04]} 27. Qxd1 {[%emt 0:00:05]} c5 {[%emt 0:00:18]} 28. Qd5+ {[%emt 0:00:46]} Kf8 {[%emt 0:00:19]} 29. Kf1 {[%emt 0:01:41]} Qa7 {[%emt 0:00:49]} 30. b3 {[%emt 0:04:57]} a5 {[%emt 0:00:50]} 31. Qc6 {[%emt 0:01:25]} Kf7 {[%emt 0:00:57]} 32. Qxb5 {[%emt 0:00:21]} Ke6 {[%emt 0:00:29]} 33. a4 {[%emt 0:01:01]} Qc7 {[%emt 0:00:37]} 34. Qe8+ {[%emt 0:01:48]} Kd5 {[%emt 0:00:37]} 35. Qg8+ {[%emt 0:00:28]} Ke5 {[%emt 0:00:47]} 36. Qxh7 {[%emt 0:00:56]} Qd6 {[%emt 0:00:28]} 37. Qh5+ {[%emt 0:00:14]} f5 {[%emt 0:01:03]} 38. Qe2+ {[%emt 0:00:43]} Kf6 {[%emt 0:00:05]} 39. g3 {[%emt 0:01:32]} Qd5 {[%emt 0:00:40]} 40. Kg1 {[%emt 0:00:12]} Qd4 {[%emt 0:00:12]} 41. Qa6+ {[%emt 0:05:15]} Kg5 {[%emt 0:00:16]} 42. h4+ {[%emt 0:00:45]} Kh5 {[%emt 0:00:30]} 43. Qe2+ {[%emt 0:00:12]} Kg6 {[%emt 0:00:24]} 44. Qe6+ {[%emt 0:00:09]} Kh5 {[%emt 0:00:09]} 45. Qxf5+ {[%emt 0:00:03]} Kh6 {[%emt 0:01:23]} 46. h5 {[%emt 0:01:47]} Qd1+ {[%emt 0:00:21]} 47. Kg2 {[%emt 0:00:09]} Qd6 {[%emt 0:00:20]} 48. Qg6+ {[%emt 0:01:37]} Qxg6 {[%emt 0:00:06]} 49. hxg6 {[%emt 0:00:02]} Kxg6 {[%emt 0:00:04]} 50. Kf3 {[%emt 0:00:43]} Kf7 {[%emt 0:00:35]} 51. Ke4 {[%emt 0:00:56]} Ke6 {[%emt 0:00:26]} 52. f4 {[%emt 0:00:27]} g6 {[%emt 0:00:42]} 53. g4 {[%emt 0:00:05]} Kd6 {[%emt 0:00:17]} 54. f5 {[%emt 0:00:07]} g5 {[%emt 0:00:33]} 55. f6 {[%emt 0:00:37]} Ke6 {[%emt 0:00:04]} 56. f7 {[%emt 0:00:02]} Kxf7 {[%emt 0:00:20]} 57. Kf5 {[%emt 0:00:05]} Kg8 {[%emt 0:00:26]} 58. Kxg5 {[%emt 0:00:08]} Kg7 {[%emt 0:00:09]} 59. Kf5 {[%emt 0:00:02]} Kf7 {[%emt 0:00:19]} 60. g5 {[%emt 0:00:49]} Kg7 {[%emt 0:00:05]} 61. Ke5 {[%emt 0:00:17]} Kg6 {[%emt 0:00:23]} 62. Kd5 {[%emt 0:00:06]} Kxg5 {[%emt 0:00:09]} 63. Kxc5 {[%emt 0:00:03]} Kf5 {[%emt 0:00:31]} 64. Kb5 {[%emt 0:00:06]} Ke5 {[%emt 0:00:10]} 65. Kxa5 {[%emt 0:00:05]} Kd5 {[%emt 0:00:11]} 66. Kb6 {[%emt 0:01:48]} Kd6 {[%emt 0:00:13]} 67. a5 {[%emt 0:00:04]} Kd7 {[%emt 0:00:11]} 68. a6 {[%emt 0:00:08]} Kc8 {[%emt 0:00:10]} 69. a7 {[%emt 0:00:04]} Kd7 {[%emt 0:00:16]} 70. a8=Q {[%emt 0:00:10]} Kd6 {[%emt 0:00:04]} 71. Qa5 {[%emt 0:00:07]} Ke6 {[%emt 0:00:13]} 72. Qg5 {[%emt 0:00:05]} Kf7 {[%emt 0:00:25]} 73. Qh6 {[%emt 0:00:05]} Kg8 {[%emt 0:00:10]} 74. Qf6 {[%emt 0:00:11]} Kh7 {[%emt 0:00:12]} 75. Qg5 {[%emt 0:00:04]} Kh8 {[%emt 0:00:12]} 76. Kc7 {[%emt 0:00:05]} Kh7 {[%emt 0:00:19]} 77. Kd7 {[%emt 0:00:05]} Kh8 {[%emt 0:00:08]} 78. Ke7 {[%emt 0:00:04]} Kh7 {[%emt 0:00:12]} 79. Kf7 {[%emt 0:00:05]} Kh8 {[%emt 0:00:07]} 80. Qg8# {[%emt 0:00:06]} 1-0

[Event "36th Indian-ch U13 Girls 2023"]
[Site "Secunderabad"]
[Date "2023.12.04"]
[Round "1.7"]
[White "Amaya Roy"]
[Black "Pratyasha Jena"]
[Result "0-1"]
[ECO "D00"]
[WhiteElo "1108"]
[BlackElo "1603"]
[Annotator "NA RC"]
[PlyCount "88"]
[EventDate "2023.12.04"]
[EventType "swiss"]
[EventCountry "IND"]
[SourceTitle "playchess.com"]
[Source "ChessBase"]
[SourceQuality "1"]
[TimeControl "5400+30"]

1. d4 {[%emt 1:31:00]} d5 {[%emt 0:00:04]} 2. Nc3 {[%emt 0:00:00]} Nf6 {[%emt 0:00:40]} 3. Bf4 {[%emt 0:01:00]} c6 {[%emt 0:00:49]} 4. e3 {[%emt 0:00:00]} Bf5 {[%emt 0:01:28]} 5. f3 {[%emt 0:00:00]} e6 {[%emt 0:02:13]} 6. g4 {[%emt 0:00:00]} Bg6 {[%emt 0:00:12]} 7. h4 {[%emt 0:00:00]} h5 {[%emt 0:01:16]} 8. g5 {[%emt 0:00:00]} Ng8 {[%emt 0:02:12]} 9. Bd3 {[%emt 0:00:00]} Ne7 {[%emt 0:01:28]} 10. e4 {[%emt 0:00:00]} dxe4 {[%emt 0:02:53]} 11. Nxe4 {[%emt 0:00:00]} Nd5 {[%emt 0:07:23]} 12. Be5 {[%emt 0:00:00]} Bxe4 {[%emt 0:08:38]} 13. Bxe4 {[%emt 0:00:00]} Nd7 {[%emt 0:01:26]} 14. c3 {[%emt 0:00:00]} Nxe5 {[%emt 0:02:21]} 15. dxe5 {[%emt 0:00:00]} Qc7 {[%emt 0:04:33]} 16. g6 {[%emt 0:00:00]} O-O-O {[%emt 0:02:40]} 17. Qd2 {[%emt 0:00:00]} Qxe5 {[%emt 0:04:10]} 18. O-O-O {[%emt 0:00:00]} Bc5 {[%emt 0:01:23]} 19. Kb1 {[%emt 0:00:00]} Ne3 {[%emt 0:01:55]} 20. Bd3 {[%emt 0:00:00]} Nxd1 {[%emt 0:00:17]} 21. Qxd1 {[%emt 0:00:00]} Qe3 {[%emt 0:01:04]} 22. Kc2 {[%emt 0:00:00]} Rd7 {[%emt 0:01:44]} 23. Ne2 {[%emt 0:00:00]} Rhd8 {[%emt 0:02:44]} 24. Nd4 {[%emt 0:00:00]} Bxd4 {[%emt 0:00:56]} 25. cxd4 {[%emt 0:00:00]} Rxd4 {[%emt 0:01:14]} 26. Re1 {[%emt 0:00:00]} Qxd3+ {[%emt 0:00:26]} 27. Qxd3 {[%emt 0:00:00]} Rxd3 {[%emt 0:00:03]} 28. f4 {[%emt 0:00:00]} fxg6 {[%emt 0:00:10]} 29. Rxe6 {[%emt 0:00:00]} Rf3 {[%emt 0:00:03]} 30. Rxg6 {[%emt 0:00:00]} Rxf4 {[%emt 0:00:04]} 31. Rxg7 {[%emt 0:00:00]} Rxh4 {[%emt 0:00:06]} 32. Rh7 {[%emt 0:00:00]} Rf8 {[%emt 0:00:08]} 33. Kd2 {[%emt 0:00:00]} Rh3 {[%emt 0:00:36]} 34. Re7 {[%emt 0:00:00]} Rf2+ {[%emt 0:00:12]} 35. Kd1 {[%emt 0:00:00]} Rh1+ {[%emt 0:00:09]} 36. Re1 {[%emt 0:00:00]} Rxe1+ {[%emt 0:00:03]} 37. Kxe1 {[%emt 0:00:00]} Rf8 {[%emt 0:00:06]} 38. Ke2 {[%emt 0:00:00]} h4 {[%emt 0:00:01]} 39. Kd3 {[%emt 0:00:00]} h3 {[%emt 0:00:05]} 40. Kc3 {[%emt 0:00:00]} h2 {[%emt 0:00:05]} 41. Kb3 {[%emt 0:00:00]} h1=Q {[%emt 0:00:07]} 42. Ka3 {[%emt 0:00:00]} Rf3+ {[%emt 0:00:08]} 43. Ka4 {[%emt 0:00:00]} Qh4+ {[%emt 0:00:16]} 44. Ka5 {[%emt 0:00:00]} Rf5# {[%emt 0:00:21]} 0-1